bitfinex/quotes_BTCUSD_20251214
["timestamp","ask_amount","ask_price","bid_price","bid_amount"]
[1765718916489,0.01768,89263.0,89261.0,0.22405993]
[1765718916692,0.01940872,89263.0,89261.0,0.22405993]
[1765718917087,0.00091077,89262.0,89261.0,0.22405993]
[1765718917497,0.00091077,89262.0,89260.0,0.01120322]
[1765718917693,0.00161287,89262.0,89260.0,0.01120322]
[1765718917893,0.00161287,89262.0,89261.0,0.001]
[1765718918096,0.00161287,89262.0,89260.0,0.01120322]
[1765718918301,0.00852364,89262.0,89261.0,0.001]
[1765718918483,0.01652364,89262.0,89261.0,0.002]
[1765718919729,0.01052364,89262.0,89261.0,0.001]
[1765718920146,0.01552364,89262.0,89261.0,0.001]
[1765718920560,0.01052364,89262.0,89261.0,0.00307]
[1765718920899,0.01552364,89262.0,89261.0,0.00407]
[1765718921308,0.01552364,89262.0,89261.0,0.00597]
[1765718928770,0.01391077,89262.0,89261.0,0.00597]
[1765718929188,0.01391077,89262.0,89261.0,0.02149364]
[1765718929903,0.00891077,89262.0,89261.0,0.02049364]
[1765718930347,0.00491077,89262.0,89261.0,0.31119364]
[1765718930706,0.00891077,89262.0,89261.0,0.31219364]
[1765718930907,0.00491077,89262.0,89261.0,0.31119364]
[1765718931130,0.00091077,89262.0,89261.0,0.31019364]
[1765718931488,0.00391077,89262.0,89261.0,0.31119364]
[1765718934033,0.00391077,89262.0,89261.0,0.32887364]
[1765718936098,0.00391077,89262.0,89261.0,1.30887364]
[1765718936321,0.00391077,89262.0,89261.0,1.34250179]
[1765718937099,0.00091077,89262.0,89261.0,1.32150179]
[1765718937448,0.00191077,89262.0,89261.0,1.32450179]
[1765718939212,0.00191077,89262.0,89261.0,1.35452018]
[1765718940245,0.00191077,89262.0,89261.0,1.45520181]
[1765718940648,0.00191077,89262.0,89261.0,1.33452018]
[1765718942273,0.00191077,89262.0,89261.0,1.31452018]
[1765718943110,0.00191077,89262.0,89261.0,0.31452018]
[1765718943313,0.00191077,89262.0,89261.0,1.31452018]
[1765718947628,0.00191077,89262.0,89261.0,0.40082179]
[1765718947868,0.00191077,89262.0,89261.0,0.41850179]
[1765718948302,0.00191077,89262.0,89261.0,1.26450179]
[1765718951094,0.00191077,89262.0,89261.0,1.05090179]
[1765718951313,0.00191077,89262.0,89261.0,1.26450179]
[1765718951569,0.00191077,89262.0,89261.0,0.24682179]
[1765718953516,0.00191077,89262.0,89261.0,0.22682179]
[1765718953728,0.00191077,89262.0,89261.0,0.30714799]
[1765718954351,0.00191077,89262.0,89261.0,0.22682179]
[1765718955810,0.00191077,89262.0,89261.0,0.20682179]
[1765718956009,0.00191077,89262.0,89261.0,0.22058362]
[1765718959277,0.00191077,89262.0,89261.0,0.20058362]
[1765718962385,0.00191077,89262.0,89261.0,0.18682179]
[1765718962894,0.00191077,89262.0,89261.0,0.20058362]
[1765718963795,0.00191077,89262.0,89261.0,0.18682179]
[1765718967216,0.00191077,89262.0,89261.0,0.20058362]
[1765718971314,0.00191077,89262.0,89261.0,1.20058362]
[1765718971522,0.00191077,89262.0,89261.0,1.18682179]
[1765718973187,0.00191077,89262.0,89261.0,1.28750342]
[1765718973396,0.00191077,89262.0,89261.0,1.0]
[1765718973606,0.00191077,89262.0,89261.0,1.03362906]
[1765718974879,0.00191077,89262.0,89261.0,0.32582906]
[1765718975293,0.00191077,89262.0,89261.0,0.61652906]
[1765718975503,0.00191077,89262.0,89261.0,0.61662906]
[1765718976162,0.00191077,89262.0,89261.0,0.2923]
[1765718976374,0.00191077,89262.0,89261.0,1.08054032]
[1765718976998,0.00191077,89262.0,89261.0,1.08362032]
[1765718977404,0.00191077,89262.0,89261.0,1.08364561]
[1765718977773,0.00191077,89262.0,89261.0,1.00308]
[1765718977976,0.00191077,89262.0,89261.0,0.88672357]
[1765718978173,0.00191077,89262.0,89261.0,1.17742357]
[1765718978405,0.00191077,89262.0,89261.0,1.37434357]
[1765718979039,0.00191077,89262.0,89261.0,1.37711357]
[1765718979820,0.00191077,89262.0,89261.0,1.37988357]
[1765718980344,0.00191077,89262.0,89261.0,1.17988357]
[1765718980545,0.00191077,89262.0,89261.0,1.21350667]
[1765718981482,0.00011585,89263.0,89262.0,1.22405951]
[1765718981687,0.05,89282.0,89281.0,0.22401182]
[1765718981810,0.05,89282.0,89281.0,0.24407182]
[1765718982018,0.05,89282.0,89281.0,0.24645182]
[1765718982223,0.05,89282.0,89281.0,0.53715182]
[1765718983425,0.054,89282.0,89281.0,0.53815182]
[1765718984307,0.058,89282.0,89281.0,0.53915182]
[1765718984449,0.054,89282.0,89281.0,0.53815182]
[1765718984650,0.05,89282.0,89281.0,0.53715182]
[1765718984873,0.052,89282.0,89281.0,0.53715182]
[1765718985085,0.053,89282.0,89281.0,0.53815182]
[1765718987008,0.053,89282.0,89281.0,0.55505354]
[1765718987369,0.05360693,89282.0,89281.0,0.55505354]
[1765718988911,0.00360693,89282.0,89281.0,0.55505354]
[1765718989461,0.00360693,89282.0,89281.0,1.55505354]
[1765718992220,0.00360693,89282.0,89281.0,0.55505354]
[1765718992421,0.00360693,89282.0,89281.0,1.55505354]
[1765718993531,0.00360693,89282.0,89281.0,1.65573517]
[1765718994408,0.00360693,89282.0,89281.0,1.30585354]
[1765718994570,0.00360693,89282.0,89281.0,0.82515354]
[1765718995119,0.00360693,89282.0,89281.0,0.80747354]
[1765718995316,0.00360693,89282.0,89281.0,0.53737354]
[1765718995521,0.00360693,89282.0,89281.0,0.55505354]
[1765718998693,0.00360693,89282.0,89281.0,0.65573517]
[1765718998911,0.00360693,89282.0,89281.0,0.55505354]
[1765718999432,0.00360693,89282.0,89281.0,0.65573517]
[1765719000246,0.00360693,89282.0,89281.0,0.53737354]
[1765719000496,0.00360693,89282.0,89281.0,0.55505354]
[1765719001143,0.00360693,89282.0,89281.0,0.95043517]
[1765719001355,0.00360693,89282.0,89281.0,0.84975354]
[1765719001561,0.00360693,89282.0,89281.0,0.95043517]
[1765719001766,0.00360693,89282.0,89281.0,0.84975354]
[1765719002409,0.00360693,89282.0,89281.0,0.95025105]
[1765719002617,0.00360693,89282.0,89281.0,0.84975354]
[1765719003479,0.00077695,89282.0,89281.0,0.84975354]
[1765719003699,0.00077695,89282.0,89281.0,1.65558607]
[1765719003905,0.00077695,89282.0,89281.0,1.55505354]
[1765719004968,0.00060693,89282.0,89281.0,1.55405354]
[1765719005388,0.00120409,89282.0,89281.0,1.55705354]
[1765719005599,0.00120409,89282.0,89281.0,1.55905354]
[1765719010537,0.00120409,89282.0,89281.0,1.69915201]
[1765719013282,0.05,89285.0,89281.0,1.69915201]
[1765719013283,0.02025069,89285.0,89284.0,0.29156]
[1765719013478,0.02025069,89285.0,89284.0,1.39221058]
[1765719013680,0.02025069,89285.0,89284.0,1.39307058]
[1765719014042,0.02025069,89285.0,89284.0,1.33035069]
[1765719014430,0.02025069,89285.0,89284.0,1.43100127]
[1765719014685,0.02125069,89285.0,89284.0,1.43500127]
[1765719014829,0.02125069,89285.0,89284.0,1.33435069]
[1765719016850,0.001,89285.0,89284.0,1.33435069]
[1765719020803,0.001,89285.0,89284.0,0.33435069]
[1765719021013,0.001,89285.0,89284.0,1.33435069]
[1765719021343,0.00024273,89290.0,89287.0,0.01119983]
[1765719021532,0.00035856,89290.0,89289.0,1.29192]
[1765719021985,0.00035856,89290.0,89289.0,1.29295]
[1765719022188,0.05,89311.0,89292.0,1.0]
[1765719022391,0.05,89311.0,89293.0,1.305472]
[1765719022610,0.05,89311.0,89293.0,1.29173]
[1765719022773,0.05,89311.0,89293.0,1.32637259]
[1765719023269,0.05,89311.0,89294.0,0.00087]
[1765719023270,0.00016584,89295.0,89294.0,0.00087]
[1765719023664,0.00016584,89295.0,89294.0,1.32386113]
[1765719023829,0.00016584,89295.0,89294.0,1.31012]
[1765719024245,0.05,89311.0,89309.0,1.51464159]
[1765719024382,0.05,89311.0,89309.0,1.63354547]
[1765719024584,0.05,89311.0,89309.0,1.53368159]
[1765719025041,0.05,89311.0,89309.0,1.56728786]
[1765719025443,0.05,89311.0,89309.0,1.65192122]
[1765719025601,2.98406224,89310.0,89309.0,1.65292122]
[1765719026847,2.98606224,89310.0,89309.0,1.65292122]
[1765719027046,2.98306224,89310.0,89309.0,1.65192122]
[1765719027495,2.25034244,89310.0,89309.0,1.72367137]
[1765719027813,1.76957818,89310.0,89309.0,1.72367137]
[1765719028025,1.50944025,89310.0,89309.0,0.72367137]
[1765719028272,1.36312323,89310.0,89309.0,2.12367137]
[1765719028527,1.28477536,89310.0,89309.0,2.12367137]
[1765719028826,0.69942801,89310.0,89309.0,2.12367137]
[1765719029066,0.40544184,89310.0,89309.0,2.12367137]
[1765719029290,0.13856541,89310.0,89309.0,2.12367137]
[1765719029481,0.0651919,89310.0,89309.0,2.12367137]
[1765719029755,0.0004,89322.0,89321.0,1.51461151]
[1765719029932,0.00051581,89322.0,89321.0,1.58325151]
[1765719030139,0.05,89328.0,89327.0,0.56461486]
[1765719030342,0.05,89328.0,89327.0,1.67687398]
[1765719030526,0.05,89328.0,89327.0,1.72016398]
[1765719030902,0.05054582,89328.0,89327.0,1.72016398]
[1765719031106,0.05054582,89328.0,89327.0,1.67361176]
[1765719031931,0.05054582,89328.0,89327.0,1.67461176]
[1765719032339,0.05054582,89328.0,89327.0,1.67361176]
[1765719032542,0.03935474,89328.0,89327.0,1.67361176]
[1765719032746,0.04035474,89328.0,89327.0,1.67661176]
[1765719032951,0.02916366,89328.0,89327.0,1.67661176]
[1765719033153,0.02916366,89328.0,89327.0,1.67761176]
[1765719033365,0.01797258,89328.0,89327.0,1.67761176]
[1765719033575,0.01797258,89328.0,89327.0,1.69457197]
[1765719035393,0.01797258,89328.0,89327.0,1.84107197]
[1765719037138,0.0004,89359.0,89330.0,0.56460734]
[1765719037284,0.0004,89359.0,89330.0,1.6766403]
[1765719037486,0.0004,89359.0,89330.0,1.7199303]
[1765719037787,0.00024254,89336.0,89330.0,1.75352494]
[1765719038189,0.00024254,89336.0,89335.0,0.56459481]
[1765719038399,0.00024254,89336.0,89335.0,1.77973481]
[1765719038597,0.00024254,89336.0,89335.0,1.82302481]
[1765719038799,0.00024254,89336.0,89335.0,1.85661697]
[1765719039040,0.0004,89359.0,89338.0,0.34071839]
[1765719039240,0.0004,89359.0,89338.0,1.56261839]
[1765719039441,0.03881102,89339.0,89338.0,1.56261839]
[1765719039615,0.0004,89359.0,89344.0,1.34071839]
[1765719039813,0.0004,89359.0,89344.0,1.37282839]
[1765719040038,0.0004,89359.0,89344.0,1.41611839]
[1765719040243,0.0004,89359.0,89351.0,0.56455472]
[1765719040609,0.00051578,89352.0,89351.0,1.61434472]
[1765719040832,0.00051578,89352.0,89351.0,1.73748629]
[1765719041426,0.00051578,89352.0,89351.0,1.65763472]
[1765719041762,0.00151578,89352.0,89351.0,1.66163472]
[1765719041963,0.00151578,89352.0,89351.0,1.80813472]
[1765719042345,0.00151578,89352.0,89351.0,1.88793033]
[1765719042547,0.00151578,89352.0,89351.0,1.80813472]
[1765719042948,0.00151578,89352.0,89351.0,1.80913472]
[1765719043811,0.00151578,89352.0,89351.0,2.20913472]
[1765719044013,0.00151578,89352.0,89351.0,1.74143633]
[1765719044266,0.00151578,89352.0,89351.0,1.75911633]
[1765719044580,0.00151578,89352.0,89351.0,1.46841633]
[1765719044856,0.00200074,89352.0,89351.0,1.46841633]
[1765719045011,0.00200074,89352.0,89351.0,1.74143633]
[1765719045215,0.00200074,89352.0,89351.0,1.75911633]
[1765719046935,0.00200074,89352.0,89351.0,1.74143633]
[1765719047143,0.00200074,89352.0,89351.0,1.75911633]
[1765719047374,0.00200074,89352.0,89351.0,1.61261633]
[1765719048549,0.00200074,89352.0,89351.0,1.59493633]
[1765719048766,0.00200074,89352.0,89351.0,1.12471633]
[1765719049004,0.00200074,89352.0,89351.0,0.53221633]
[1765719049179,0.00200074,89352.0,89351.0,0.80523633]
[1765719049402,0.00200074,89352.0,89351.0,1.61261633]
[1765719049781,0.00200074,89352.0,89351.0,1.60761633]
[1765719049782,0.00100074,89352.0,89351.0,1.60761633]
[1765719049980,0.00300074,89352.0,89351.0,1.61309523]
[1765719051812,0.00300074,89352.0,89351.0,1.59541523]
[1765719052018,0.00300074,89352.0,89351.0,0.93089523]
[1765719052220,0.00300074,89352.0,89351.0,0.61309523]
[1765719052469,0.00461361,89352.0,89351.0,0.3282889]
[1765719052653,0.00461361,89352.0,89351.0,0.001]
[1765719052860,0.08696361,89352.0,89351.0,0.001]
[1765719053063,0.31079743,89352.0,89351.0,0.001]
[1765719053291,0.31079743,89352.0,89346.0,0.01119244]
[1765719053292,0.01119181,89351.0,89347.0,0.01119231]
[1765719053490,0.01119194,89350.0,89343.0,0.19896299]
[1765719053697,0.00161287,89344.0,89343.0,0.19896299]
[1765719054047,0.00161287,89344.0,89342.0,0.2907]
[1765719054679,0.00161287,89344.0,89342.0,0.51455663]
[1765719055908,0.07096287,89344.0,89342.0,0.51455663]
[1765719056288,0.04567,89343.0,89342.0,0.51455663]
[1765719056519,0.04567,89343.0,89342.0,0.001]
[1765719056859,0.11502,89343.0,89342.0,0.001]
[1765719056979,0.11502,89343.0,89335.0,0.01119382]
[1765719057180,0.08247,89336.0,89333.0,0.2907]
[1765719057380,0.04567,89334.0,89331.0,0.01119432]
[1765719057596,0.06935,89335.0,89332.0,0.01119419]
[1765719057810,0.04567,89332.0,89330.0,0.52578089]
[1765719058043,0.04567,89331.0,89330.0,0.2907]
[1765719058294,0.04567,89331.0,89307.0,0.06214]
[1765719058295,0.01119632,89315.0,89310.0,0.01119695]
[1765719058518,0.01119632,89315.0,89309.0,0.01119707]
[1765719058519,0.01119657,89313.0,89309.0,0.01119707]
[1765719058833,0.01119645,89314.0,89310.0,0.01119695]
[1765719058834,0.0368,89314.0,89310.0,0.01119695]
[1765719059012,0.0368,89314.0,89310.0,0.30189695]
[1765719059216,0.0368,89314.0,89312.0,0.2907]
[1765719059453,0.03689074,89314.0,89313.0,0.22393156]
[1765719059674,0.03689074,89314.0,89312.0,0.2907]
[1765719059798,9.074e-05,89314.0,89312.0,0.2907]
[1765719060000,0.00409074,89314.0,89312.0,0.2907]
[1765719060237,0.00109074,89314.0,89313.0,0.04329]
[1765719060433,0.00509074,89314.0,89312.0,0.2907]
[1765719060845,0.00409074,89314.0,89312.0,0.2907]
[1765719061071,0.00609074,89314.0,89313.0,0.10030946]
[1765719061274,0.00609074,89314.0,89313.0,1.39100922]
[1765719061482,0.00609074,89314.0,89313.0,1.37728]
[1765719061696,0.00209074,89314.0,89313.0,1.37728]
[1765719062077,0.00409074,89314.0,89313.0,1.37728]
[1765719062275,0.00209074,89314.0,89313.0,1.37728]
[1765719062634,0.00109074,89314.0,89313.0,1.37728]
[1765719062835,0.00209074,89314.0,89313.0,1.41188909]
[1765719064098,0.00209074,89314.0,89313.0,0.41188909]
[1765719064278,0.00209074,89314.0,89313.0,1.41188909]
[1765719065164,0.00209074,89314.0,89313.0,0.41188909]
[1765719065410,0.00209074,89314.0,89313.0,1.41188909]
[1765719065997,0.00209074,89314.0,89313.0,1.46190748]
[1765719066574,0.00209074,89314.0,89313.0,1.86190748]
[1765719066947,0.00109074,89314.0,89313.0,1.46090748]
[1765719067093,0.00109074,89314.0,89313.0,1.68483904]
[1765719067297,0.00209074,89314.0,89313.0,2.08883904]
[1765719067903,0.00109074,89314.0,89313.0,2.08883904]
[1765719068290,0.00109074,89314.0,89313.0,2.09183904]
[1765719068865,0.00109074,89314.0,89313.0,1.64182065]
[1765719069042,0.00109074,89314.0,89313.0,1.65950065]
[1765719070118,0.00109074,89314.0,89313.0,0.73946842]
[1765719070311,0.00109074,89314.0,89313.0,1.73946842]
[1765719070519,0.00109074,89314.0,89313.0,1.65950065]
[1765719071330,0.00109074,89314.0,89313.0,1.73946842]
[1765719072308,0.00109074,89314.0,89313.0,1.65950065]
[1765719073562,0.00109074,89314.0,89313.0,1.64182065]
[1765719073756,0.00109074,89314.0,89313.0,1.65950065]
[1765719075466,0.00109074,89314.0,89313.0,1.70951904]
[1765719075671,0.00109074,89314.0,89313.0,1.80976592]
[1765719075875,0.00025049,89314.0,89313.0,1.70951904]
[1765719076126,0.0004,89352.0,89343.0,1.13215637]
[1765719076127,0.0002425,89344.0,89343.0,1.13215637]
[1765719076439,0.00033329,89344.0,89343.0,0.76984637]
[1765719076637,0.00033329,89344.0,89343.0,0.81313637]
[1765719076833,0.00033329,89344.0,89343.0,0.60113637]
[1765719076984,0.00033329,89344.0,89343.0,0.55784637]
[1765719077386,0.00333329,89344.0,89343.0,0.55784637]
[1765719078018,0.00633329,89344.0,89343.0,0.55884637]
[1765719078424,0.00633329,89344.0,89343.0,0.60213637]
[1765719079070,0.00633329,89344.0,89343.0,1.60213637]
[1765719079619,0.00333329,89344.0,89343.0,1.60113637]
[1765719080057,0.00033329,89344.0,89343.0,1.60113637]
[1765719080471,0.00233329,89344.0,89343.0,1.60113637]
[1765719080671,0.00033329,89344.0,89343.0,1.60113637]
[1765719081016,0.00133329,89344.0,89343.0,0.60413637]
[1765719081186,0.00133329,89344.0,89343.0,1.60413637]
[1765719081812,0.00033329,89344.0,89343.0,1.60313637]
[1765719082321,0.00133329,89344.0,89343.0,1.60613637]
[1765719082658,0.00033329,89344.0,89343.0,1.60313637]
[1765719083063,0.00033329,89344.0,89343.0,1.60113637]
[1765719083264,0.00033329,89344.0,89343.0,1.60213637]
[1765719083661,0.00033329,89344.0,89343.0,1.60113637]
[1765719083887,0.00033329,89344.0,89343.0,1.60313637]
[1765719084111,0.00033329,89344.0,89343.0,1.70528326]
[1765719084112,0.00133329,89344.0,89343.0,1.70528326]
[1765719084331,0.00133329,89344.0,89343.0,1.60513637]
[1765719084741,0.00033329,89344.0,89343.0,1.60313637]
[1765719084951,0.00133329,89344.0,89343.0,1.60613637]
[1765719085894,0.00133329,89344.0,89343.0,1.7240555]
[1765719086216,0.00133329,89344.0,89343.0,1.7063755]
[1765719086418,0.00133329,89344.0,89343.0,1.62381637]
[1765719087566,0.00133329,89344.0,89343.0,0.62381637]
[1765719087767,0.00133329,89344.0,89343.0,0.58052637]
[1765719088183,0.00133329,89344.0,89343.0,0.66069309]
[1765719088457,0.00033329,89344.0,89343.0,0.70098309]
[1765719088852,0.00133329,89344.0,89343.0,0.70298309]
[1765719089323,0.00133329,89344.0,89343.0,0.70098309]
[1765719089537,0.00133329,89344.0,89343.0,0.62181637]
[1765719089732,0.00133329,89344.0,89343.0,1.62181637]
[1765719090496,0.00133329,89344.0,89343.0,0.92631591]
[1765719090710,0.00133329,89344.0,89343.0,0.81591637]
[1765719091111,0.00133329,89344.0,89343.0,0.80451637]
[1765719091730,0.00133329,89344.0,89343.0,1.62181637]
[1765719092945,0.00133329,89344.0,89343.0,1.7220555]
[1765719093374,0.00133329,89344.0,89343.0,1.62181637]
[1765719093574,0.00133329,89344.0,89343.0,1.7221153]
[1765719093774,0.00133329,89344.0,89343.0,1.62181637]
[1765719095023,0.00133329,89344.0,89343.0,0.85571637]
[1765719095839,0.00133329,89344.0,89343.0,0.62181637]
[1765719096047,0.00133329,89344.0,89343.0,1.62181637]
[1765719097468,0.00133329,89344.0,89343.0,1.7221153]
[1765719097915,0.000307,89344.0,89343.0,1.7221153]
[1765719098147,0.000307,89344.0,89343.0,1.62181637]
[1765719098467,0.000307,89344.0,89343.0,1.62629549]
[1765719100105,0.000307,89344.0,89343.0,1.21141549]
[1765719100324,0.000307,89344.0,89343.0,0.57852637]
[1765719101125,0.000307,89344.0,89343.0,0.28782637]
[1765719101440,0.000307,89344.0,89343.0,0.57852637]
[1765719102254,0.000307,89344.0,89343.0,0.51755637]
[1765719102557,0.12086987,89344.0,89343.0,0.2937]
[1765719103295,0.12056287,89344.0,89343.0,0.2907]
[1765719103736,0.12756287,89344.0,89343.0,0.2917]
[1765719104377,0.12756287,89344.0,89343.0,0.001]
[1765719104960,0.12756287,89344.0,89343.0,0.22485637]
[1765719105177,0.05586287,89344.0,89343.0,0.22485637]
[1765719106612,0.00861287,89344.0,89343.0,0.22485637]
[1765719108388,0.05586287,89344.0,89343.0,0.22485637]
[1765719108558,0.12756287,89344.0,89343.0,0.22485637]
[1765719112704,0.12756287,89344.0,89343.0,0.001]
[1765719114001,0.00861287,89344.0,89343.0,0.001]
[1765719117132,0.12818287,89344.0,89343.0,0.001]
[1765719117378,0.1561646,89344.0,89343.0,0.001]
[1765719119851,0.01119369,89336.0,89333.0,0.01119407]
[1765719120052,0.03539,89334.0,89333.0,0.01119407]
[1765719122155,0.03539,89334.0,89333.0,0.01219407]
[1765719122362,0.03539,89334.0,89333.0,0.001]
[1765719122639,0.15696,89334.0,89330.0,0.01119444]
[1765719122843,0.08114,89331.0,89328.0,0.01119469]
[1765719123049,0.04575,89330.0,89328.0,0.01119469]
[1765719124116,0.11957,89329.0,89328.0,0.01119469]
[1765719124471,0.04658432,89331.0,89328.0,0.01119469]
[1765719124472,0.03539,89331.0,89330.0,0.22388895]
[1765719124680,0.001,89334.0,89333.0,0.22388143]
[1765719125070,0.03539,89339.0,89336.0,0.23506539]
[1765719125453,0.03539,89339.0,89338.0,0.2238689]
[1765719125661,0.03539,89339.0,89336.0,0.23506539]
[1765719125945,0.01119419,89332.0,89328.0,0.01219469]
[1765719126143,0.08114,89329.0,89328.0,0.30189469]
[1765719126304,0.03539,89329.0,89328.0,0.30189469]
[1765719126768,0.07382,89336.0,89335.0,0.22387642]
[1765719126969,0.03739,89339.0,89336.0,0.01119369]
[1765719127179,0.03739,89339.0,89337.0,0.22387091]
[1765719127357,0.002,89339.0,89337.0,0.22387091]
[1765719127715,0.00161287,89344.0,89343.0,0.22385637]
[1765719129361,0.00561287,89344.0,89343.0,0.22485637]
[1765719129698,0.00161287,89344.0,89343.0,0.22385637]
[1765719129899,0.00461287,89344.0,89343.0,0.22485637]
[1765719130262,0.00161287,89344.0,89343.0,0.22385637]
[1765719130471,0.02989925,89393.0,89343.0,0.22385637]
[1765719130472,0.0004,89352.0,89351.0,0.22383633]
[1765719131678,0.0034,89352.0,89351.0,0.22483633]
[1765719132044,0.0004,89352.0,89351.0,0.22383633]
[1765719132251,0.0024,89352.0,89351.0,0.22383633]
[1765719133393,0.12397,89352.0,89351.0,0.001]
[1765719133593,0.15194922,89352.0,89351.0,0.001]
[1765719133999,0.15356209,89352.0,89351.0,0.001]
[1765719134200,0.37739591,89352.0,89351.0,0.001]
[1765719134409,0.34941669,89352.0,89351.0,0.001]
[1765719135592,0.12558287,89352.0,89351.0,0.001]
[1765719136212,0.12582532,89352.0,89351.0,0.001]
[1765719136988,0.0276494,89352.0,89351.0,0.001]
[1765719137797,0.1472194,89352.0,89351.0,0.001]
[1765719140439,0.00625532,89352.0,89351.0,0.001]
[1765719140684,0.00625532,89352.0,89351.0,0.04429]
[1765719140918,0.00625532,89352.0,89351.0,0.001]
[1765719141127,0.12582532,89352.0,89351.0,0.001]
[1765719142390,0.00625532,89352.0,89351.0,0.001]
[1765719142899,0.00625532,89352.0,89351.0,0.04387]
[1765719143284,0.00625532,89352.0,89351.0,0.001]
[1765719144195,0.05200532,89352.0,89351.0,0.001]
[1765719144613,0.12582532,89352.0,89351.0,0.001]
[1765719144982,0.14750698,89352.0,89351.0,0.001]
[1765719145731,0.07368698,89352.0,89351.0,0.001]
[1765719145949,0.00625532,89352.0,89351.0,0.001]
[1765719149097,0.00625532,89352.0,89351.0,0.26571633]
[1765719149879,0.00625532,89352.0,89351.0,0.22483633]
[1765719150321,0.00625532,89352.0,89351.0,0.59673633]
[1765719150521,0.00464245,89352.0,89351.0,0.59673633]
[1765719151874,0.00464245,89352.0,89351.0,0.55613633]
[1765719152358,0.00464245,89352.0,89351.0,1.59617633]
[1765719153743,0.00264245,89352.0,89351.0,1.59617633]
[1765719153955,0.00364245,89352.0,89351.0,0.51953633]
[1765719154153,0.00064245,89352.0,89351.0,0.51453633]
[1765719154373,0.00164245,89352.0,89351.0,0.53621633]
[1765719154554,0.00164245,89352.0,89351.0,0.53821633]
[1765719154763,0.00164245,89352.0,89351.0,0.51853633]
[1765719155121,0.12038532,89352.0,89351.0,0.22383633]
[1765719155266,0.12138532,89352.0,89351.0,0.22483633]
[1765719155663,0.12138532,89352.0,89351.0,0.001]
[1765719157621,0.12138532,89352.0,89351.0,0.22483633]
[1765719159798,0.12138532,89352.0,89351.0,0.001]
[1765719160251,0.00325532,89352.0,89351.0,0.001]
[1765719161523,0.12138532,89352.0,89351.0,0.001]
[1765719162618,0.12138532,89352.0,89351.0,0.51553633]
[1765719162754,0.12138532,89352.0,89351.0,0.2917]
[1765719163842,0.04838532,89352.0,89351.0,0.2917]
[1765719164482,0.12138532,89352.0,89351.0,0.2917]
[1765719165903,0.12138532,89352.0,89351.0,0.001]
[1765719167312,0.12138532,89352.0,89331.0,0.01119432]
[1765719167313,0.01119382,89335.0,89331.0,0.01119432]
[1765719167577,0.07945,89332.0,89331.0,9.079e-05]
[1765719167780,0.15245,89332.0,89331.0,9.079e-05]
[1765719168625,0.15245,89332.0,89331.0,0.00109079]
[1765719169878,0.15245,89332.0,89331.0,9.079e-05]
[1765719170056,0.15345,89332.0,89331.0,9.079e-05]
[1765719170200,0.15345,89332.0,89331.0,0.00109079]
[1765719170201,0.15445,89332.0,89331.0,0.00109079]
[1765719171069,0.15445,89332.0,89331.0,9.079e-05]
[1765719171070,0.15345,89332.0,89331.0,9.079e-05]
[1765719171222,0.15245,89332.0,89331.0,9.079e-05]
[1765719171606,0.15545,89332.0,89331.0,0.00109079]
[1765719171816,0.15845,89332.0,89331.0,0.00209079]
[1765719172377,0.15845,89332.0,89331.0,0.00156908]
[1765719172747,0.006,89332.0,89331.0,0.00156908]
[1765719172972,0.006,89332.0,89331.0,1.37525908]
[1765719173555,0.006,89332.0,89331.0,1.37425908]
[1765719173556,0.003,89332.0,89331.0,1.37425908]
[1765719173918,0.00225532,89352.0,89346.0,0.01119244]
[1765719174047,0.00225532,89352.0,89351.0,0.24388633]
[1765719174251,0.00225532,89352.0,89351.0,0.22383633]
[1765719174475,0.12038532,89352.0,89351.0,0.22383633]
[1765719175046,0.12238532,89352.0,89351.0,0.22383633]
[1765719175285,0.04938532,89352.0,89351.0,0.22383633]
[1765719175460,0.00425532,89352.0,89351.0,0.22383633]
[1765719176190,0.04798532,89352.0,89347.0,0.01119231]
[1765719176506,0.024876,89351.0,89347.0,0.23503628]
[1765719176685,0.024876,89351.0,89349.0,0.2350329]
[1765719178127,0.027876,89351.0,89349.0,0.2360329]
[1765719179518,0.006,89351.0,89349.0,0.2370329]
[1765719180720,0.006,89351.0,89349.0,0.002]
[1765719180914,0.04373,89350.0,89349.0,0.002]
[1765719181116,0.06052891,89350.0,89349.0,0.002]
[1765719181333,0.13548985,89350.0,89349.0,0.002]
[1765719182288,0.13548985,89350.0,89349.0,0.001]
[1765719182701,0.13948985,89350.0,89349.0,0.001]
[1765719183108,0.14248985,89350.0,89349.0,0.002]
[1765719189105,0.17578985,89350.0,89349.0,0.002]
[1765719195050,0.22580824,89350.0,89349.0,0.002]
[1765719195998,0.01119507,89325.0,89321.0,0.30189557]
[1765719196210,0.07703,89322.0,89320.0,0.3018957]
[1765719196492,0.04373,89321.0,89320.0,0.3018957]
[1765719196693,0.10751,89321.0,89320.0,0.3018957]
[1765719198582,0.04373,89321.0,89320.0,0.3038957]
[1765719198760,0.0343,89322.0,89321.0,0.22391151]
[1765719198963,0.0333,89329.0,89328.0,0.23508713]
[1765719199169,0.09708,89340.0,89338.0,0.22386691]
[1765719199592,0.04373,89339.0,89337.0,0.23506322]
[1765719199766,0.04373,89338.0,89336.0,0.01119369]
[1765719199967,0.04373,89337.0,89334.0,0.01119394]
[1765719200173,0.10751,89337.0,89334.0,0.01119394]
[1765719200374,0.04373,89335.0,89334.0,0.01119394]
[1765719200781,0.10751,89335.0,89334.0,0.01119394]
[1765719200978,0.10751,89335.0,89333.0,0.01119407]
[1765719201214,0.22388343,89333.0,89329.0,0.2907]
[1765719201415,0.04373,89330.0,89329.0,0.2907]
[1765719201819,0.10751,89330.0,89329.0,0.2907]
[1765719202180,0.10751,89330.0,89328.0,0.01119469]
[1765719202403,0.0333,89332.0,89331.0,0.22388644]
[1765719202557,0.01119394,89334.0,89331.0,0.22388644]
[1765719202761,0.02798486,89334.0,89331.0,0.23508076]
[1765719203668,0.02798486,89334.0,89332.0,0.22388187]
[1765719203868,0.03917749,89337.0,89334.0,0.01119394]
[1765719204307,0.02798392,89337.0,89335.0,0.22387428]
[1765719204926,0.10751,89336.0,89334.0,0.01119394]
[1765719205132,0.07171455,89335.0,89334.0,0.001]
[1765719205353,0.01119394,89334.0,89331.0,0.001]
[1765719205541,0.30091393,89332.0,89331.0,0.001]
[1765719205739,0.01119457,89329.0,89326.0,0.01119494]
[1765719205946,0.04336,89327.0,89326.0,0.01119494]
[1765719206316,0.1054,89327.0,89326.0,0.01119494]
[1765719206974,0.1054,89327.0,89326.0,0.01219494]
[1765719208231,0.1054,89327.0,89326.0,0.01119494]
[1765719208435,0.1064,89327.0,89325.0,0.01119507]
[1765719208637,0.10274,89326.0,89324.0,0.01119519]
[1765719208936,0.0407,89325.0,89324.0,0.01119519]